bitfinex-derivatives/quotes_ETHF0:USTF0_20250917
["timestamp","ask_amount","ask_price","bid_price","bid_amount"]
[1758098833447,0.21745,4510.7,4509.8,0.23]
[1758098833649,0.55026003,4510.1,4509.8,0.23]
[1758098835154,0.55026003,4510.1,4509.9,0.23]
[1758098837055,0.21745,4510.7,4509.9,0.23]
[1758098837257,0.18541317,4510.6,4509.9,0.23]
[1758098837559,0.21745,4510.7,4510.1,3.2078]
[1758098838060,0.76771003,4510.7,4510.1,3.2078]
[1758098838355,3.2078,4512.4,4510.6,3.2078]
[1758098838559,0.55026003,4511.0,4510.6,3.2078]
[1758098838857,0.55026003,4511.1,4510.7,0.229]
[1758098839059,3.2078,4511.6,4510.8,0.229]
[1758098839258,3.2078,4511.6,4510.9,0.229]
[1758098839555,0.22168001,4511.5,4510.9,0.229]
[1758098839764,0.55026003,4511.0,4510.9,0.229]
[1758098841653,0.55026003,4511.0,4510.6,3.2078]
[1758098841952,3.2078,4511.6,4510.7,0.229]
[1758098842150,0.22168001,4511.5,4510.7,0.229]
[1758098842347,0.55026003,4510.8,4510.7,0.229]
[1758098842753,3.2078,4511.6,4510.6,3.2078]
[1758098843058,0.22168001,4511.5,4510.7,0.229]
[1758098843554,0.55026003,4510.8,4510.7,0.229]
[1758098844860,0.55026003,4510.8,4510.6,3.2078]
[1758098845061,3.2078,4511.6,4510.7,0.229]
[1758098845256,0.55026003,4510.7,4510.6,3.2078]
[1758098845455,0.55026003,4510.7,4510.6,3.4368]
[1758098845654,3.2078,4511.6,4510.6,3.4368]
[1758098845850,0.55026003,4510.7,4510.6,3.4368]
[1758098846466,3.2078,4511.6,4510.6,3.4368]
[1758098846757,0.55026003,4510.7,4510.6,3.4368]
[1758098847162,3.2078,4511.6,4510.6,3.4368]
[1758098847363,0.55026003,4510.7,4510.6,3.4368]
[1758098847761,3.2078,4511.6,4510.6,3.4368]
[1758098847959,0.55026003,4510.7,4510.6,3.4368]
[1758098848358,3.2078,4511.6,4510.6,3.4368]
[1758098848565,0.55026003,4510.7,4510.6,3.4368]
[1758098849065,3.2078,4511.6,4510.6,3.4368]
[1758098849258,0.55026003,4510.7,4510.6,3.4368]
[1758098849654,3.2078,4511.6,4510.6,3.4368]
[1758098849864,0.55026003,4510.7,4510.6,3.4368]
[1758098850258,3.2078,4511.6,4510.6,3.4368]
[1758098850564,0.55026003,4510.7,4510.6,3.4368]
[1758098850764,0.55026003,4510.7,4510.6,3.2078]
[1758098850966,3.2078,4511.0,4510.6,0.229]
[1758098851164,0.55026003,4510.7,4510.4,0.0221]
[1758098851360,3.75806003,4510.5,4510.4,0.0221]
[1758098851562,3.75806003,4510.5,4510.4,0.2511]
[1758098851867,3.75806003,4510.5,4510.4,0.229]
[1758098852065,3.75806003,4510.5,4510.3,0.229]
[1758098852268,0.55026003,4509.9,4509.5,3.2078]
[1758098852469,0.55026003,4509.9,4509.6,0.229]
[1758098853770,0.55026003,4509.8,4509.6,0.229]
[1758098854367,3.2078,4510.5,4509.6,0.229]
[1758098854664,0.55026003,4509.8,4509.6,0.229]
[1758098854966,0.55026003,4509.9,4509.6,0.229]
[1758098856364,3.2078,4510.0,4509.5,0.0221]
[1758098856665,3.2078,4510.0,4509.6,0.229]
[1758098857056,3.2078,4510.0,4509.5,0.0221]
[1758098857262,0.55026003,4509.6,4509.5,0.2511]
[1758098857562,0.55026003,4509.6,4509.4,0.176]
[1758098857869,3.2078,4509.5,4509.4,0.176]
[1758098858068,3.75806003,4509.5,4509.4,0.176]
[1758098858970,3.75806003,4509.5,4508.3,3.2078]
[1758098859270,0.55026003,4509.1,4508.4,0.229]
[1758098860869,0.55026003,4509.1,4508.5,0.0221]
[1758098861870,0.55026003,4509.0,4508.5,0.0221]
[1758098862366,3.2078,4509.5,4508.5,0.0221]
[1758098862567,0.55026003,4509.0,4508.5,0.0221]
[1758098862756,0.55026003,4509.0,4508.6,0.229]
[1758098862961,3.2078,4509.5,4508.6,0.229]
[1758098863160,0.55026003,4509.0,4508.6,0.229]
[1758098863567,3.2078,4509.5,4508.6,0.229]
[1758098863873,0.55026003,4509.0,4508.6,0.229]
[1758098864266,3.2078,4509.5,4508.6,0.229]
[1758098864769,0.55026003,4509.1,4508.6,0.229]
[1758098865169,3.2078,4509.5,4508.6,0.229]
[1758098865372,0.55026003,4509.1,4508.6,0.229]
[1758098865870,3.2078,4509.5,4508.6,0.229]
[1758098866173,0.55026003,4509.1,4508.7,0.229]
[1758098866473,0.55026003,4509.1,4508.8,0.229]
[1758098866666,3.2078,4510.0,4508.8,0.229]
[1758098866868,0.55026003,4509.1,4508.8,0.229]
[1758098867769,0.55026003,4509.1,4508.5,0.0221]
[1758098867971,3.2078,4509.5,4508.5,0.0221]
[1758098868272,0.55026003,4508.7,4508.6,0.229]
[1758098868665,3.2078,4509.5,4508.6,0.229]
[1758098868872,0.55026003,4508.7,4508.6,0.229]
[1758098869070,3.2078,4509.5,4508.6,0.229]
[1758098869277,0.55026003,4508.7,4508.5,0.0221]
[1758098869476,0.55026003,4508.7,4508.6,0.229]
[1758098869777,3.2078,4509.5,4508.6,0.229]
[1758098869978,0.55026003,4508.7,4508.6,0.229]
[1758098870476,3.2078,4509.5,4508.6,0.229]
[1758098870676,0.55026003,4508.7,4508.6,0.229]
[1758098870881,3.2078,4509.5,4508.6,0.229]
[1758098871073,0.55026003,4508.7,4508.6,0.229]
[1758098871579,3.2078,4509.5,4508.6,0.229]
[1758098872075,0.55026003,4508.8,4508.6,0.229]
[1758098872878,3.2078,4509.5,4508.6,0.229]
[1758098873179,0.55026003,4508.8,4508.6,0.229]
[1758098875669,3.2078,4509.5,4508.6,0.229]
[1758098875879,0.55026003,4508.7,4508.6,0.229]
[1758098876279,3.2078,4509.5,4508.6,0.229]
[1758098876683,0.55026003,4509.1,4508.8,3.2078]
[1758098877977,3.2078,4510.6,4508.8,3.2078]
[1758098878182,0.55026003,4509.8,4509.3,3.2078]
[1758098878381,0.55026003,4509.8,4509.4,0.229]
[1758098880179,0.55026003,4509.7,4509.3,3.2078]
[1758098880387,3.2078,4510.1,4509.4,0.229]
[1758098880578,3.2078,4510.1,4509.3,3.2078]
[1758098880774,3.2078,4510.1,4509.4,0.229]
[1758098881182,0.55026003,4509.5,4509.3,3.2078]
[1758098881486,3.2078,4510.1,4509.4,0.229]
[1758098881989,0.55026003,4509.5,4509.4,0.229]
[1758098882287,3.2078,4510.1,4509.4,0.229]
[1758098882785,0.55026003,4509.8,4509.4,0.229]
[1758098883278,3.2078,4510.1,4509.4,0.229]
[1758098883479,3.2078,4510.9,4509.9,3.2078]
[1758098883784,3.2078,4510.9,4510.0,0.229]
[1758098883986,0.55026003,4510.7,4510.0,0.229]
[1758098884679,3.2078,4510.9,4510.1,0.229]
[1758098885079,3.2078,4510.9,4510.2,0.229]
[1758098885384,3.2078,4510.9,4509.9,3.2078]
[1758098885585,3.2078,4510.3,4510.0,0.229]
[1758098885883,3.2078,4510.3,4510.1,0.229]
[1758098886084,3.2078,4510.3,4510.2,0.229]
[1758098886280,3.75806003,4510.3,4510.2,0.229]
[1758098888076,3.2078,4510.9,4510.2,0.229]
[1758098888280,0.55026003,4510.7,4510.2,0.229]
[1758098888985,3.2078,4510.9,4510.2,0.229]
[1758098889186,3.2078,4511.5,4510.5,3.2078]
[1758098889385,0.55026003,4511.0,4510.5,3.2078]
[1758098889788,0.55026003,4510.9,4510.5,3.2078]
[1758098890287,3.2078,4511.5,4510.5,3.2078]
[1758098890483,0.55026003,4510.9,4510.5,3.2078]
[1758098890786,0.55026003,4511.0,4510.6,0.229]
[1758098891382,3.2078,4510.9,4509.9,3.2078]
[1758098891578,3.2078,4510.9,4510.7,0.0221]
[1758098891983,0.55026003,4510.8,4510.7,0.0221]
[1758098893292,0.55026003,4510.8,4510.7,0.2511]
[1758098893487,0.55026003,4510.8,4510.7,0.0221]
[1758098894390,0.55026003,4510.8,4510.5,0.229]
[1758098894590,0.55026003,4510.6,4510.5,0.229]
[1758098894792,3.75806003,4510.9,4510.5,0.229]
[1758098895193,0.55026003,4510.9,4510.5,0.229]
[1758098895384,0.55026003,4510.9,4510.6,0.229]
[1758098896592,0.55026003,4510.9,4510.7,0.229]
[1758098896792,0.55026003,4510.9,4510.8,0.229]
[1758098897395,3.2078,4511.4,4510.8,0.229]
[1758098897696,0.55026003,4510.9,4510.8,0.229]
[1758098897888,3.2078,4511.4,4510.8,0.229]
[1758098898195,0.55026003,4510.9,4510.8,0.149]
[1758098898397,3.2078,4511.4,4510.8,0.149]
[1758098898601,0.55026003,4511.1,4510.8,0.149]
[1758098898985,3.2078,4511.4,4510.8,0.149]
[1758098899691,3.2078,4511.9,4510.9,3.2078]
[1758098900092,0.55026003,4511.5,4511.0,0.229]
[1758098900696,3.2078,4511.9,4511.0,0.229]
[1758098900697,0.55026003,4511.4,4511.0,0.229]
[1758098901195,3.2078,4511.9,4511.0,0.229]
[1758098901600,0.55026003,4511.5,4511.0,0.229]
[1758098902505,0.55026003,4511.5,4511.1,0.229]
[1758098902696,3.2078,4511.9,4511.1,0.229]
[1758098903001,0.55026003,4511.5,4511.1,0.229]
[1758098903901,0.55026003,4511.5,4510.9,3.2078]
[1758098904094,0.55026003,4511.5,4511.2,0.229]
[1758098904294,3.2078,4511.9,4511.2,0.229]
[1758098904496,0.55026003,4511.8,4511.2,0.229]
[1758098905801,0.55026003,4511.8,4511.3,0.229]
[1758098905997,0.55026003,4511.8,4510.9,3.2078]
[1758098906204,0.55026003,4511.7,4511.0,0.229]
[1758098906701,0.55026003,4511.6,4510.9,3.2078]
[1758098906902,3.2078,4511.9,4511.0,0.229]
[1758098907094,0.55026003,4511.4,4510.9,3.2078]
[1758098907297,0.55026003,4511.4,4511.0,0.229]
[1758098907499,3.2078,4511.9,4511.0,0.229]
[1758098907700,3.2078,4511.9,4511.1,0.229]
[1758098907905,0.22166001,4511.8,4511.1,0.229]
[1758098908204,0.55026003,4511.2,4511.1,0.229]
[1758098908708,3.2078,4511.9,4511.1,0.229]
[1758098909007,0.55026003,4511.2,4511.1,0.229]
[1758098909210,3.2078,4511.2,4510.6,0.0221]
[1758098909396,3.2078,4510.7,4510.6,0.0221]
[1758098909602,3.75806003,4510.7,4510.6,0.1511]
[1758098909904,3.2078,4510.7,4510.6,0.129]
[1758098910105,3.2078,4510.7,4510.6,0.108]
[1758098910501,3.2078,4510.7,4509.6,3.2078]
[1758098910706,3.2078,4510.7,4509.7,0.133]
[1758098911007,0.55026003,4509.9,4509.7,0.133]
[1758098911603,3.2078,4510.7,4509.7,0.133]
[1758098911808,0.55026003,4509.9,4509.7,0.133]
[1758098912302,3.2078,4510.7,4509.7,0.133]
[1758098912502,0.55026003,4509.9,4509.7,0.133]
[1758098912703,3.2078,4510.7,4509.7,0.133]
[1758098912913,0.55026003,4509.9,4509.7,0.133]
[1758098913411,3.2078,4510.7,4509.7,0.133]
[1758098913596,0.55026003,4509.9,4509.7,0.133]
[1758098913799,0.55026003,4510.0,4509.7,0.133]
[1758098914511,3.2078,4510.7,4509.7,0.133]
[1758098914911,0.55026003,4510.3,4509.6,3.2299]
[1758098915109,3.2078,4510.7,4509.6,3.2299]
[1758098915506,0.55026003,4509.9,4509.7,0.229]
[1758098915701,0.55026003,4509.9,4509.8,0.229]
[1758098915903,3.2078,4510.2,4509.8,0.229]
[1758098916111,3.2078,4510.2,4509.6,3.2299]
[1758098916312,3.2078,4510.2,4509.7,0.229]
[1758098917217,3.2078,4510.2,4509.6,3.2299]
[1758098917413,3.2078,4510.2,4509.8,0.229]
[1758098919119,3.2078,4510.2,4509.9,0.229]
[1758098920511,3.2078,4510.2,4510.0,0.229]
[1758098921508,3.2078,4510.2,4510.1,0.229]
[1758098921916,3.2078,4510.2,4510.0,0.229]
[1758098929029,3.4368,4511.0,4510.0,0.229]
[1758098930425,3.2078,4511.0,4510.1,0.229]
[1758098932024,3.2078,4511.0,4510.2,0.229]
[1758098932229,3.2078,4511.0,4509.9,0.0221]
[1758098932526,0.22171,4510.9,4510.0,0.229]
[1758098932722,3.2078,4511.0,4510.0,0.229]
[1758098933125,0.2217,4510.9,4510.0,0.229]
[1758098933526,3.2078,4511.0,4510.0,0.229]
[1758098934934,3.2078,4511.0,4510.1,3.2078]
[1758098935125,3.2078,4511.7,4510.7,3.2078]
[1758098935325,3.2078,4511.7,4510.8,0.229]
[1758098935734,3.2078,4512.3,4510.8,0.229]
[1758098936232,0.22165,4512.2,4510.8,0.229]
[1758098936633,0.22166001,4512.1,4510.8,0.229]
[1758098936835,0.22165,4512.2,4510.9,0.22164999]
[1758098937033,3.2078,4512.3,4510.8,0.229]
[1758098937235,3.2078,4512.3,4511.3,3.2078]
[1758098937433,3.2078,4512.3,4511.4,0.229]
[1758098939830,3.2078,4512.3,4511.5,0.0221]
[1758098940033,3.2078,4512.3,4511.6,0.229]
[1758098940435,3.2078,4512.3,4511.5,0.0221]
[1758098940635,3.2078,4512.3,4511.7,0.229]
[1758098942231,0.22163,4512.2,4511.5,0.0221]
[1758098942530,3.2078,4511.7,4511.5,0.0221]
[1758098942734,3.2078,4511.7,4509.7,3.2078]
[1758098942735,0.229,4511.6,4509.7,3.2078]
[1758098942926,3.2078,4510.4,4509.8,0.229]
[1758098943531,3.2078,4510.4,4509.7,3.2078]
[1758098943932,3.2078,4510.9,4509.8,0.229]
[1758098944136,3.2078,4510.4,4509.9,0.229]
[1758098944436,3.2078,4510.4,4509.7,3.2078]
[1758098944636,3.2078,4510.4,4509.8,0.229]
[1758098945341,3.2078,4510.4,4509.7,3.2078]
[1758098945634,3.2078,4510.4,4509.9,0.229]
[1758098945835,3.2078,4510.4,4509.7,3.2078]
[1758098946030,3.2078,4510.4,4509.8,0.229]
[1758098946428,3.2078,4510.4,4509.5,0.0221]
[1758098946739,3.2078,4510.4,4509.6,0.229]
[1758098948431,3.2078,4510.4,4509.7,0.229]
[1758098951836,3.2078,4510.4,4509.7,3.4368]
[1758098953446,3.2078,4510.4,4509.8,0.228]
[1758098953646,3.2078,4510.4,4509.9,0.228]
[1758098953946,3.2078,4510.4,4509.5,0.0221]
[1758098954238,3.2078,4510.4,4509.6,0.228]
[1758098955645,3.2078,4510.4,4509.7,0.228]
[1758098957046,3.2078,4510.4,4509.5,0.0221]
[1758098957240,3.2078,4510.4,4509.6,0.228]
[1758098959439,3.2078,4510.4,4509.7,0.228]
[1758098960045,3.2078,4510.4,4509.8,0.228]
[1758098961141,3.2078,4510.4,4509.5,0.0221]
[1758098961349,3.2078,4510.4,4509.7,0.228]
[1758098968560,3.2078,4510.4,4509.7,3.4358]
[1758098969560,3.2078,4511.1,4509.7,3.4358]
[1758098969756,3.2078,4511.1,4510.2,3.2078]
[1758098970059,3.2078,4511.1,4510.3,0.228]
[1758098970262,3.2078,4511.6,4510.3,0.228]
[1758098972164,3.2078,4511.6,4510.3,0.40647696]
[1758098972364,3.2078,4511.6,4510.3,0.17847696]
[1758098972564,3.2078,4511.6,4510.2,3.2078]
[1758098972760,3.2078,4511.1,4510.3,0.228]
[1758098975171,3.2078,4511.6,4510.3,0.228]
[1758098976067,3.2078,4511.6,4510.3,0.44968]
[1758098976270,3.2078,4511.6,4510.3,0.228]
[1758098976472,3.2078,4511.6,4510.3,0.44968]
[1758098976770,3.2078,4511.6,4510.3,0.228]
[1758098977864,3.2078,4511.6,4510.2,3.2078]
[1758098978065,3.2078,4511.6,4510.3,0.228]
[1758098978265,3.2078,4511.6,4510.8,3.2078]
[1758098978465,3.2078,4511.6,4510.9,0.228]
[1758098978868,3.2078,4511.6,4511.0,0.228]
[1758098979375,3.2078,4511.6,4510.8,3.2078]
[1758098979572,0.22167,4511.5,4510.6,0.228]
[1758098979872,0.22167,4511.5,4510.1,3.2078]
[1758098980071,3.2078,4511.1,4510.1,3.2078]
[1758098980276,3.4358,4511.1,4510.1,3.2078]
[1758098980773,0.2217,4511.0,4510.1,3.2078]
[1758098981074,0.2217,4511.0,4510.2,0.228]
[1758098981262,0.2217,4510.9,4510.1,3.2078]
[1758098981468,0.2217,4511.0,4510.1,3.4358]
[1758098981969,0.2217,4510.9,4510.1,3.4358]
[1758098982171,0.2217,4511.0,4510.1,3.4358]
[1758098982373,41.0217,4511.0,4510.1,3.4358]
[1758098982668,40.8,4511.0,4510.1,3.4358]
[1758098983075,3.4358,4511.1,4510.1,3.4358]
[1758098983274,0.2217,4511.0,4510.1,3.4358]
[1758098983772,3.4358,4511.1,4510.1,3.4358]
[1758098983973,3.6575,4511.1,4510.1,3.4358]
[1758098984874,3.4358,4511.1,4510.1,3.4358]
[1758098985472,3.4358,4511.1,4510.1,3.2078]
[1758098985681,3.2078,4510.6,4510.1,0.228]
[1758098985976,3.2078,4510.6,4509.6,3.2299]
[1758098986173,3.2078,4510.6,4509.9,0.228]
[1758098986377,3.2078,4510.6,4509.6,3.2299]
[1758098986573,3.2078,4510.6,4509.7,0.228]
[1758098987276,3.2078,4510.6,4509.6,3.2299]
[1758098987478,3.2078,4510.6,4509.7,0.228]
[1758098989881,3.2078,4510.6,4509.6,3.2299]
[1758098990180,3.2078,4510.6,4509.6,3.4579]
[1758098991181,3.2078,4510.6,4509.7,0.228]
[1758098991375,3.2078,4510.6,4509.6,3.2299]
[1758098991571,3.2078,4510.6,4509.6,3.4579]
[1758098991776,3.2078,4510.6,4509.6,3.2299]
[1758098993177,3.2078,4510.1,4509.6,0.0221]
[1758098995185,3.2078,4510.1,4509.6,0.2501]
[1758098995984,3.2078,4510.1,4509.6,0.228]
[1758098998382,3.2078,4510.1,4509.6,0.2501]
[1758099004894,3.2078,4510.1,4509.7,0.228]
[1758099006090,3.2078,4510.1,4509.6,0.0221]
[1758099010100,3.2078,4510.1,4509.2,0.228]
[1758099010300,0.22175,4510.0,4509.1,3.2078]
[1758099010690,3.2078,4510.1,4509.1,3.2078]
[1758099010893,0.74285864,4510.0,4509.1,3.2078]
[1758099011094,0.22175,4510.0,4509.1,3.2078]
[1758099012802,3.2078,4510.1,4509.2,0.0221]
[1758099013003,0.22175,4510.0,4509.2,0.0221]
[1758099013499,3.2078,4510.1,4509.2,0.0221]
[1758099013700,0.22175,4510.0,4509.2,0.0221]
[1758099014391,3.2078,4510.1,4509.2,0.0221]
[1758099014595,0.22175,4510.0,4509.2,0.0221]
[1758099014798,3.42955,4510.1,4509.2,0.0221]
[1758099015204,3.2078,4509.6,4509.2,0.0221]
[1758099022503,3.2078,4510.3,4509.2,0.0221]
[1758099023006,3.2078,4510.3,4509.3,0.22174]
[1758099023310,3.2078,4510.3,4509.2,0.0221]
[1758099025705,3.2078,4510.3,4509.3,0.228]
[1758099026105,3.2078,4510.3,4509.2,0.0221]
[1758099026310,0.22174,4510.2,4509.3,0.228]
[1758099026705,3.2078,4510.3,4509.3,0.228]
[1758099026906,0.22174,4510.2,4509.3,0.228]
[1758099027201,0.22174,4510.2,4509.2,0.0221]
[1758099027404,3.2078,4510.3,4509.2,0.2501]
[1758099027607,0.22174,4510.2,4509.2,0.2501]
[1758099027912,3.2078,4509.7,4509.2,0.0221]
[1758099038617,3.2078,4509.7,4508.9,0.228]
[1758099041218,3.2078,4509.7,4509.0,0.0221]
[1758099043117,3.2078,4509.7,4509.0,0.2501]
[1758099043307,3.2078,4509.7,4509.0,0.0221]
[1758099043510,3.2078,4509.7,4509.0,0.2501]
[1758099044420,3.2078,4509.7,4509.0,0.0221]
[1758099044622,3.2078,4509.7,4509.0,0.2501]
[1758099049323,3.2078,4509.7,4509.0,0.228]
[1758099052532,3.2078,4509.7,4509.1,0.0221]
[1758099054429,3.4358,4509.7,4509.1,0.0221]
[1758099058733,3.65756,4509.7,4509.1,0.0221]
[1758099059527,0.22176,4509.6,4509.1,0.0221]
[1758099059728,3.4358,4509.7,4509.1,0.0221]
[1758099059923,0.22176,4509.6,4509.1,0.0221]
[1758099060323,3.4358,4509.7,4509.1,0.0221]
[1758099060527,0.22176,4509.6,4509.1,0.0221]
[1758099060734,3.65756,4509.7,4509.1,0.0221]
[1758099061830,3.4358,4509.7,4509.1,0.0221]
[1758099071535,3.2078,4510.2,4509.2,0.22176]
[1758099071736,3.2078,4510.2,4509.3,0.228]
[1758099072043,3.2078,4510.2,4509.5,1.59568613]
[1758099072446,3.2078,4510.2,4509.4,1.59568613]
[1758099072646,3.2078,4510.2,4509.4,1.81742613]
[1758099072847,3.2078,4510.2,4509.8,1.59568613]
[1758099073240,3.2078,4510.2,4509.8,1.81741612]
[1758099073750,3.2078,4510.2,4509.9,0.228]
[1758099074640,3.2078,4511.1,4509.9,4.44972999]
[1758099074843,3.2078,4511.1,4510.1,4.80348613]
[1758099075039,3.2078,4511.6,4510.6,3.2078]
[1758099075250,3.2078,4511.6,4510.6,3.4358]
[1758099075548,3.2078,4511.6,4510.8,1.59568613]
[1758099076141,3.2078,4511.6,4510.9,0.228]
[1758099076337,3.2078,4511.6,4511.0,0.228]
[1758099077048,3.2078,4511.6,4510.6,3.2078]
[1758099077249,3.2078,4511.6,4510.7,0.44868]
[1758099077450,3.2078,4511.6,4510.7,0.22168]
[1758099077646,3.2078,4511.6,4510.8,0.22166999]
[1758099077842,3.2078,4511.6,4510.9,0.227]
[1758099078041,3.2078,4511.6,4510.7,0.22168]
[1758099078249,3.2078,4511.6,4510.8,0.227]
[1758099078847,3.2078,4511.6,4510.6,3.2078]
[1758099079048,3.2078,4511.6,4510.7,0.227]
[1758099081243,3.2078,4511.6,4510.8,0.227]
[1758099081648,3.2078,4511.6,4510.6,3.2078]
[1758099081846,3.2078,4511.6,4510.7,0.227]
[1758099082348,3.2078,4511.6,4510.6,3.2078]
[1758099082550,3.2078,4511.6,4510.8,0.0221]
[1758099083949,3.2078,4511.6,4510.9,0.227]
[1758099084149,3.2078,4511.6,4511.0,0.227]
[1758099084753,3.2078,4511.6,4510.8,0.0221]
[1758099084961,3.2078,4511.6,4510.9,0.227]
[1758099085153,3.2078,4511.6,4510.8,0.0221]
[1758099085459,3.2078,4511.6,4510.9,0.227]
[1758099085855,3.2078,4511.6,4510.8,0.0221]
[1758099086356,3.2078,4511.1,4510.8,0.0221]
[1758099092863,3.2078,4511.9,4510.9,3.2078]
[1758099094471,3.2078,4511.9,4511.0,0.227]
[1758099097274,3.2078,4511.9,4510.9,3.2078]
[1758099098168,3.2078,4511.9,4511.0,0.0221]
[1758099108675,40.8,4512.8,4511.4,3.2078]
[1758099108676,3.4348,4512.4,4511.4,3.2078]
[1758099110775,3.4348,4512.4,4511.5,0.227]
[1758099110978,3.2078,4512.4,4511.5,0.227]
[1758099113978,3.2078,4512.4,4511.5,0.40456053]
[1758099115080,3.2078,4512.4,4511.5,0.227]
[1758099116478,3.2078,4512.4,4511.4,3.2078]
[1758099116686,3.2078,4512.4,4511.5,0.227]
[1758099118182,3.2078,4512.4,4511.4,3.2078]
[1758099118372,3.2078,4512.4,4511.5,0.227]
[1758099118577,3.2078,4512.4,4511.6,0.227]
[1758099118781,3.2078,4512.4,4511.7,0.227]
[1758099121087,3.2078,4512.4,4511.8,0.227]
[1758099121282,3.2078,4512.4,4511.4,3.2078]
[1758099121485,3.2078,4512.4,4511.5,0.227]
[1758099121984,3.2078,4512.4,4511.4,3.2078]
[1758099122184,3.2078,4512.4,4511.5,0.227]
[1758099124485,3.2078,4512.9,4511.5,0.227]
[1758099124686,3.2078,4512.9,4511.9,3.2078]
[1758099124881,0.22163,4512.8,4511.9,3.2078]
[1758099125079,0.22163,4512.8,4511.6,0.227]
[1758099125080,3.2078,4512.2,4511.6,0.227]
[1758099126395,3.2078,4511.7,4510.4,2.77943463]
[1758099126596,3.2078,4511.1,4510.1,3.2078]
[1758099126799,3.2078,4511.1,4509.5,2.77943463]
[1758099126800,3.2078,4510.6,4509.9,1.98536344]
[1758099127092,3.2078,4510.6,4509.9,0.227]
[1758099128284,3.2078,4510.6,4509.6,3.2078]
[1758099128489,3.2078,4510.6,4509.7,0.227]
[1758099129086,3.2078,4510.6,4509.8,0.0221]
[1758099130193,3.2078,4510.6,4509.9,0.22172]
[1758099130392,3.2078,4510.6,4510.0,0.227]
[1758099130691,3.2078,4511.1,4510.1,3.2078]
[1758099133392,3.2078,4511.1,4510.2,0.227]
[1758099133993,0.227,4511.2,4510.2,0.227]
[1758099134190,3.2078,4511.6,4510.2,0.227]
[1758099134395,3.2078,4511.6,4510.7,3.2078]
[1758099136797,3.2078,4511.6,4510.8,0.227]
[1758099137296,0.227,4511.5,4510.2,3.2078]
[1758099137501,3.2078,4511.1,4510.2,3.2078]
[1758099137690,3.2078,4511.1,4510.3,0.227]
[1758099139697,0.227,4511.5,4510.3,0.227]
[1758099140096,0.227,4511.5,4510.3,0.44869]
[1758099140396,0.227,4511.5,4510.3,0.227]
[1758099140600,3.2078,4511.6,4510.3,0.227]
[1758099140902,3.2078,4511.1,4510.2,3.4348]
[1758099141201,3.4348,4511.6,4510.2,3.2078]
[1758099141404,3.4348,4511.6,4510.3,0.227]
[1758099141603,0.22169,4511.5,4510.3,0.227]
[1758099142104,3.4348,4511.6,4510.3,0.227]
[1758099142792,3.65648001,4511.6,4510.3,0.227]
[1758099144305,3.65648001,4511.6,4510.2,3.2078]
[1758099144505,3.65648001,4511.6,4510.3,0.227]
[1758099144806,3.4348,4511.6,4510.3,0.227]
[1758099145006,3.4348,4511.6,4510.2,3.2078]
[1758099145308,3.4348,4511.6,4510.3,0.227]
[1758099146002,3.4348,4511.6,4510.9,3.2078]
[1758099146201,3.4348,4511.6,4510.9,3.4348]
[1758099150107,3.4348,4511.6,4510.9,3.2078]
[1758099150309,3.4348,4511.6,4511.0,0.227]
[1758099152515,3.4348,4511.6,4511.1,0.227]
[1758099155613,3.4348,4511.6,4511.2,0.0221]
[1758099160020,0.22166001,4511.5,4511.2,0.0221]
[1758099160521,0.22166001,4511.4,4511.2,0.0221]
[1758099160724,3.4348,4511.6,4511.2,0.0221]
[1758099160914,3.65646001,4511.6,4511.2,0.0221]
[1758099161721,3.4348,4511.6,4511.2,0.0221]
[1758099161920,0.51485155,4511.5,4511.2,0.0221]
[1758099162119,3.4348,4511.6,4511.2,0.0221]
[1758099162327,0.51489862,4511.5,4511.2,0.0221]
[1758099162522,3.4348,4511.6,4511.2,0.0221]
[1758099162724,0.51488929,4511.5,4511.2,0.0221]
[1758099162926,3.4348,4511.6,4511.2,0.0221]
[1758099163224,0.51488929,4511.5,4511.2,0.0221]
[1758099163423,3.4348,4511.6,4511.2,0.0221]
[1758099163622,0.51487634,4511.5,4511.2,0.0221]
[1758099163823,0.51487634,4511.4,4511.2,0.0221]
[1758099164024,0.51487634,4511.3,4511.2,0.0221]
[1758099164530,0.51487634,4511.3,4510.4,3.4348]
[1758099164830,3.2078,4511.1,4510.4,3.4348]
[1758099168131,3.2078,4511.1,4510.5,0.0221]
[1758099169419,3.2078,4512.1,4511.0,3.2078]
[1758099169625,0.51481186,4512.0,4511.1,0.227]
[1758099169827,0.51481186,4511.9,4511.2,0.227]
[1758099170028,3.2078,4512.1,4511.2,0.227]
[1758099170333,0.51454116,4512.0,4511.2,0.227]
[1758099170534,0.51454116,4511.9,4511.2,0.227]
[1758099170733,3.2078,4512.1,4511.2,0.227]
[1758099171034,0.51444767,4512.0,4511.3,0.227]
[1758099171234,0.51444767,4511.9,4511.3,0.227]
[1758099171435,3.2078,4512.1,4511.0,3.2078]
[1758099171630,0.5143998,4512.0,4511.0,3.4348]
[1758099171824,3.2078,4512.1,4511.0,3.4348]
[1758099173036,3.2078,4512.1,4511.0,3.2078]
[1758099173232,3.42945,4512.1,4511.0,3.2078]
[1758099173836,3.2078,4512.1,4511.0,3.2078]
[1758099180043,3.2078,4511.6,4511.0,3.2078]